Cogmind - Beta 14 @@@ ROGUE MODE // 2024.10.07 @ 05:03:49 Player: Spoing Result: Destroyed by S-10 Pest with Light Assault Rifle Performance ------------- Evolutions (1) 500 Regions Visited (4) 800 Robots Destroyed (29) 145 Value Destroyed (978) 978 Prototype IDs (2) 40 Alien Tech Used (0) 0 Bonus (0) 0 TOTAL SCORE: 2463 Bonus ------- None Cogmind --------- Core Integrity 0/400 Matter 255/300 Energy 39/100 System Corruption 3% Temperature Cool (3) Movement Flying (34) Location -9/Storage Parts ------- > --- POWER (1) -------- (None) > --- PROPULSION (3) --- Improved Flight Unit Improved Flight Unit Improved Flight Unit > --- UTILITY (3) ------ Improved Heat Sink Improved Heat Sink Small Storage Unit > --- WEAPON (2) ------- (None) > --- INVENTORY (8) ---- Improved Ion Engine Improved Flight Unit Improved Flight Unit Improved Flight Unit Drone Bay (2/2) Drone Bay (2/2) Drone Bay (2/2) Maul Peak State ------------ > --- POWER ------------ (None) > --- PROPULSION ------- Improved Flight Unit Improved Flight Unit Improved Flight Unit > --- UTILITY ---------- Improved Heat Sink Improved Heat Sink Small Storage Unit > --- WEAPON ----------- Guided EMP Blaster > --- INVENTORY -------- Improved Ion Engine Improved Flight Unit Improved Flight Unit Improved Flight Unit Drone Bay Drone Bay Drone Bay Maul [Rating: 30] Favorites ----------- Power Ion Engine Engine Ion Engine Power Core Light Nuclear Core Propulsion Wheel Treads Light Treads Wheel Wheel Flight Unit Improved Flight Unit Utility Huge Storage Unit Device Improved Heat Sink Storage Huge Storage Unit Protection Light Armor Plating Weapon Assault Rifle Ballistic Gun Assault Rifle Launcher Grenade Launcher Impact Weapon Hammer Build | -11 -10 -10 -9 -9 ------- Run | Yrd Mat Min Mat Sto Slots Evolved 2 | . . . 2 . Power . | . . . . . Propulsion 1 | . . . 1 . Utility 1 | . . . 1 . Weapon . | . . . . . Parts Attached 40 | 6 4 7 18 5 Power 6 | 1 . 2 3 . Engine 5 | 1 . 2 2 . Core 1 | . . . 1 . Reactor . | . . . . . Propulsion 13 | 2 1 1 9 . Treads 1 | . . . 1 . Leg . | . . . . . Wheel 9 | 2 1 1 5 . Hover . | . . . . . Flight 3 | . . . 3 . Utility 9 | 1 1 1 3 3 Device 4 | . . 1 . 3 Storage 3 | 1 1 . 1 . Processor . | . . . . . Hackware . | . . . . . Protection 2 | . . . 2 . Artifact . | . . . . . Weapon 12 | 2 2 3 3 2 Energy Gun . | . . . . . Energy Cannon . | . . . . . Ballistic Gun 8 | 2 2 2 2 . Ballistic Cannon . | . . . . . Launcher 2 | . . 1 . 1 Special Weapon . | . . . . . Impact Weapon 2 | . . . 1 1 Slashing Weapon . | . . . . . Piercing Weapon . | . . . . . Special Melee Weapon . | . . . . . Unidentified Prototypes 1 | . . . . 1 Parts Lost 20 | . 1 5 13 1 Power 5 | . . 2 2 1 Propulsion 8 | . 1 2 5 . Utility 2 | . . . 2 . Weapon 5 | . . 1 4 . Highest Loss Streak 5 | . 1 4 5 1 To Critical Strikes . | . . . . . Average Slot Usage (%) 74 | . 83 78 66 73 Engine 8 | . 14 7 9 . Core 1 | . . . . 9 Wheel 19 | . 26 19 20 . Flight 4 | . . . 2 33 Device 6 | . . 8 5 17 Storage 12 | . 14 14 11 11 Protection 1 | . . . 2 2 Ballistic Gun 16 | . 28 27 7 . Impact Weapon 2 | . . . 6 . Peak Build Rating 30 | 6 9 12 17 30 Average Rating 10 | 2 7 8 10 19 On Entrance 8 | . 6 9 10 15 Naked Turns . | . . . . . Heaviest Build 93 | 14 91 92 93 14 Greatest Support 30 | 20 26 26 30 15 Greatest Overweight (x) 9 | . 9 8 9 . Average Overweight (x) 1 | . 1 5 3 . Largest Inventory Capacity 25 | 8 25 25 25 8 Average Capacity 20 | 6 16 25 23 8 Most Carried 25 | 5 14 18 25 8 Average Carried 13 | 2 8 14 19 7 Final Capacity 25 | 8 25 25 8 8 Final Carried 18 | 2 13 18 8 8 Class Distribution -------------------- 98% | Mutant Dominant Class ---------------- Mutant | -10/Materials Mutant | -10/Mines Mutant | -9/Materials Mutant | -9/Storage Resources | -11 -10 -10 -9 -9 ----------- Run | Yrd Mat Min Mat Sto Matter Collected 1065 | 169 222 344 276 54 Remotely . | . . . . . Salvage Created 1181 | . 238 137 752 54 Parts 58 | . 20 2 35 1 Haulers Intercepted 2 | . . . 1 1 Recyclers Shooed 1 | . 1 . . . Parts Field Recycled . | . . . . . Retrieved Matter . | . . . . . Parts Self-Destructed . | . . . . . Prevented . | . . . . . Kills | -11 -10 -10 -9 -9 ------- Run | Yrd Mat Min Mat Sto Combat Hostiles Destroyed 36 | . 6 13 17 . Melee 4 | . . . 4 . Guns 18 | . 6 6 6 . AOE 8 | . . 7 1 . Classes Destroyed 7 | . 2 2 3 . Hauler 2 | . . . 1 1 Watcher 1 | . 1 . . . Swarmer 1 | . . 1 . . Grunt 20 | . 6 2 12 . Brawler 1 | . . . 1 . Sentry 4 | . . . 4 . Assembled 10 | . . 10 . . Best Kill Streak 7 | . 4 7 5 1 Combat Bots Only 7 | . 4 7 5 . Max Kills in Single Turn 2 | . 1 2 1 1 Gunslinging . | . . . . . Exploded 2 | . . 2 1 . Melee 1 | . . . 1 . Uniques/NPCs Destroyed . | . . . . . Combat | -11 -10 -10 -9 -9 -------- Run | Yrd Mat Min Mat Sto Hostile Shots Fired 263 | . 31 61 124 47 Missed 92 | . 4 20 39 29 Damage Taken 2265 | . 335 656 1080 194 Core 625 | . 41 181 329 74 Absorbed by Shields . | . . . . . Core Remaining (%) 55 | 100 . 11 . . Volleys Fired 76 | . 21 32 23 . Largest 2 | . 2 2 2 . Hottest 53 | . 46 53 43 . Shots Fired 146 | . 42 60 44 . Gun 141 | . 42 55 44 . Cannon . | . . . . . Launcher 5 | . . 5 . . Special . | . . . . . Kinetic 141 | . 42 55 44 . Thermal . | . . . . . Explosive 5 | . . 5 . . Electromagnetic . | . . . . . Robot Hit Streak 13 | . 8 5 13 . Robot Miss Streak 5 | . 3 5 3 . Penetration Max . | . . . . . Secondary Targets 2 | . 1 1 . . Max Gunslinging Chain 1 | . 1 1 . . Shots Hit Robots 129 | . 28 32 68 1 Core Hits 58 | . 17 23 18 . Critical Kills 1 | . . . 1 . Critical Parts Destroyed 6 | . . 1 4 1 Critical Strikes 7 | . . 1 5 1 Destroy 1 | . . 1 . . Smash 6 | . . . 5 1 Melee Attacks 45 | . . . 44 1 Impact 45 | . . . 44 1 Slashing . | . . . . . Piercing . | . . . . . Sneak Attacks 6 | . . . 5 1 Combat Hostiles . | . . . . . Follow-up Attacks . | . . . . . Damage Inflicted 2663 | . 462 739 1358 104 Guns 1273 | . 462 367 444 . Cannons . | . . . . . Explosions 372 | . . 372 . . Melee 1018 | . . . 914 104 Ramming . | . . . . . Kinetic 1273 | . 462 367 444 . Thermal . | . . . . . Explosive 372 | . . 372 . . Electromagnetic . | . . . . . Impact 1018 | . . . 914 104 Slashing . | . . . . . Piercing . | . . . . . Highest Corruption 2 | . 2 2 2 2 Average Corruption 2 | . 2 2 2 2 Corruption Purged . | . . . . . Corruption Blocked . | . . . . . Effects 26 | . 7 9 4 6 Message Errors 4 | . 2 . 1 1 Matter Fused 7 | . . 5 1 1 Heat Flow Errors 2 | . 1 . 1 . Energy Discharges 4 | . 1 1 1 1 Data Loss (minor) 4 | . 1 . . 3 Misfires 2 | . 1 1 . . Alerts 1 | . . 1 . . Weapon Failures 2 | . 1 1 . . Overload Shots . | . . . . . Overflow Damage 261 | . . . 157 104 Projectiles . | . . . . . Explosions . | . . . . . Melee 261 | . . . 157 104 Knockbacks 1 | . . . 1 . Impact 1 | . . . 1 . Kinetic . | . . . . . Secondary . | . . . . . Self-Inflicted Damage 61 | . . 61 . . Shots 4 | . . 4 . . Rammed . | . . . . . Targets Rammed . | . . . . . Kicked . | . . . . . Crushed . | . . . . . Highest Temperature 250 | . 108 15 250 . Average Temperature 36 | . 26 8 85 . Received Heat Transfer 948 | . 261 96 564 27 Siege Activations . | . . . . . Robots Corrupted 7 | . . . 6 1 Combat Hostiles 6 | . . . 6 . Parts Fried 4 | . . . 4 . Impact Corruptions 12 | . . . 10 2 Robots Melted . | . . . . . Combat Hostiles . | . . . . . Parts Melted . | . . . . . Heat Transferred . | . . . . . Parts Sabotaged . | . . . . . Parts Stolen . | . . . . . Parts Stripped . | . . . . . Power Chain Reactions . | . . . . . Alert | -11 -10 -10 -9 -9 ------- Run | Yrd Mat Min Mat Sto Peak Influence 537 | . 210 130 331 537 Initial 100 | . . 3 . 100 Average 116 | . 58 63 154 255 Maximum Alert Level 2 | . 1 . 1 2 Low Security (%) 77 | 100 91 100 65 34 Level 1 21 | . 8 . 34 59 Level 2 . | . . . . 6 Level 3 . | . . . . . Level 4 . | . . . . . Level 5 . | . . . . . High Security . | . . . . . Max Security . | . . . . . Squads Dispatched 6 | . 1 . 4 1 Investigation 1 | . . . 1 . Extermination . | . . . . . Reinforcement 5 | . 1 . 3 1 Assault . | . . . . . Garrison . | . . . . . Intercept . | . . . . . Searches Triggered . | . . . . . Construction Impeded 1 | . . . 1 . Haulers Reinforced . | . . . . . Active Scanning Responses . | . . . . . Cargo Convoy Interrupts . | . . . . . Stealth | -11 -10 -10 -9 -9 --------- Run | Yrd Mat Min Mat Sto Distress Signals 7 | . 1 . 3 3 Communications Jammed . | . . . . . Distress Signals . | . . . . . Times Spotted 83 | . 10 15 30 28 Peak Tracking Total 20 | . 5 7 6 20 Tactical Retreats 6 | . 1 2 . 3 Traps | -11 -10 -10 -9 -9 ------- Run | Yrd Mat Min Mat Sto Traps Triggered 2 | . 1 . . 1 Indirectly . | . . . . . Trap Hack Attempts . | . . . . . Triggered . | . . . . . Disarmed . | . . . . . Reprogrammed . | . . . . . Reused 1 | . . . 1 . Traps Extracted . | . . . . . Installed 3 | . . . 3 . Triggered 1 | . . . 1 . Most Traps Carried 4 | . . 4 4 . Machines | -11 -10 -10 -9 -9 ---------- Run | Yrd Mat Min Mat Sto Machines Disabled . | . . . . . Max in Single Turn . | . . . . . Machines Repaired . | . . . . . Machines Dismantled . | . . . . . Machines Sabotaged . | . . . . . Overloaded Fab Kills . | . . . . . Hacking | -11 -10 -10 -9 -9 --------- Run | Yrd Mat Min Mat Sto Machines Accessed 17 | . 4 . 3 10 Terminals 16 | . 4 . 2 10 Fabricators . | . . . . . Repair Stations . | . . . . . Recycling Units . | . . . . . Scanalyzers 1 | . . . 1 . Garrison Access . | . . . . . Total Hacks 40 | . 12 . 6 22 Successful 17 | . 3 . 2 12 Failed 23 | . 9 . 4 10 Catastrophic 4 | . 2 . 1 1 Database Lockouts . | . . . . . Manual 22 | . 7 . 4 11 Terminals 38 | . 12 . 4 22 Fabricators . | . . . . . Repair Stations . | . . . . . Recycling Units . | . . . . . Scanalyzers 2 | . . . 2 . Garrison Access . | . . . . . Terminal Hacks 12 | . 2 . . 10 Open Door 5 | . . . . 5 Level Access Points 1 | . . . . 1 Branch Access Points 2 | . 1 . . 1 Terminal Index 2 | . 1 . . 1 Locate Traps 1 | . . . . 1 Zone Layout 1 | . . . . 1 Fabricator Hacks . | . . . . . Repair Station Hacks . | . . . . . Recycling Unit Hacks . | . . . . . Scanalyzer 2 | . . . 2 . Insert Component 1 | . . . 1 . Analyze 1 | . . . 1 . Garrison Access Hacks . | . . . . . Unauthorized Hacks 3 | . 1 . . 2 Terminals 3 | . 1 . . 2 Botnet 3 | . 1 . . 2 Fabricators . | . . . . . Repair Stations . | . . . . . Recycling Units . | . . . . . Scanalyzers . | . . . . . Garrison Access . | . . . . . Data Cores Recovered . | . . . . . Used . | . . . . . Hacking Detections 14 | . 4 . 3 7 Full Trace Events 2 | . . . 1 1 Feedback Events . | . . . . . Feedback Blocked . | . . . . . Robot Schematics Acquired . | . . . . . Robots Built . | . . . . . Authchips . | . . . . . Time . | . . . . . Total Robot Build Rating . | . . . . . Part Schematics Acquired 1 | . . . 1 . Parts Built . | . . . . . Authchips . | . . . . . Time . | . . . . . Total Part Build Rating . | . . . . . Parts Repaired . | . . . . . Time . | . . . . . Parts Recycled . | . . . . . Recycled Matter . | . . . . . Retrieved Matter . | . . . . . Retrieved Components . | . . . . . Parts Scanalyzed 1 | . . . 1 . Part Schematics Acquired 1 | . . . 1 . Parts Damaged . | . . . . . Bothacking | -11 -10 -10 -9 -9 ------------ Run | Yrd Mat Min Mat Sto Used RIF Installer . | . . . . . Robots Hacked . | . . . . . Non-combat . | . . . . . Combat . | . . . . . Robot Hacks Applied . | . . . . . Relay Couplers Released . | . . . . . Fabnet Peak Effective % . | . . . . . Robots Rewired . | . . . . . Allies Hacked . | . . . . . Hacks Repelled . | . . . . . Allies | -11 -10 -10 -9 -9 -------- Run | Yrd Mat Min Mat Sto Total Allies . | . . . . . Largest Group . | . . . . . Highest-Rated Group . | . . . . . Highest-Rated Ally . | . . . . . Total Orders . | . . . . . Ally Attacks . | . . . . . Total Damage . | . . . . . Kills . | . . . . . Allies Corrupted . | . . . . . Allies Melted . | . . . . . Intel | -11 -10 -10 -9 -9 ------- Run | Yrd Mat Min Mat Sto Robot Analysis Total . | . . . . . Derelict Logs Recovered 1 | . . 1 . . Drone Launches . | . . . . . Drone Recoveries . | . . . . . Exploration | -11 -10 -10 -9 -9 ------------- Run | Yrd Mat Min Mat Sto Turns Passed 1941 | 40 452 520 698 231 Spaces Moved 1537 | 41 315 239 361 581 Core 15 | 15 . . . . Treads . | . . . . . Legs . | . . . . . Wheels 831 | 26 315 239 251 . Hover . | . . . . . Flight 691 | . . . 110 581 Fastest Speed 34 | 50 80 135 34 34 Average Speed 87 | 69 102 165 113 34 Slowest Speed 215 | 80 215 200 215 34 Overloaded Moves . | . . . . . Propulsion Burnouts . | . . . . . Robots Hopped 7 | . . . . 7 Cave-ins Triggered . | . . . . . Exploration Rate (%) 43 | 4 45 62 36 72 Regions Visited 4 Branch Regions 2 Pre-discovered Areas . | . . . . . Known Exits Taken 1 | . 1 . . . Unknown Exits Taken 3 | 1 . 1 1 . Scrap Searched . | . . . . . Spaces Dug . | . . . . . Terrain Destroyed 40 | . . 40 . . Melee . | . . . . . Projectile . | . . . . . AOE 40 | . . 40 . . Terrain Rammed . | . . . . . Walls Destroyed . | . . . . . Machines Disabled . | . . . . . Actions | -11 -10 -10 -9 -9 --------- Run | Yrd Mat Min Mat Sto Total 1896 | 51 402 304 530 609 Wait 132 | . 51 17 52 12 Move 1519 | 40 314 238 360 567 Hop 7 | . . . . 7 Pick Up 55 | 5 12 10 21 7 Fast Attach 5 | 3 . . . 2 Attach 25 | 3 1 5 13 3 Detach 2 | . . . . 2 Swap 10 | . 3 2 5 . Drop 17 | . . . 9 8 Fire 76 | . 21 32 23 . Melee 45 | . . . 44 1 Ram . | . . . . . Kick . | . . . . . Crush . | . . . . . Escape Stasis . | . . . . . Rewire . | . . . . . Trap 3 | . . . 3 . Miscellaneous . | . . . . . Route ------- -11/Scrapyard -10/Materials -10/Mines -9/Materials (discovered 2 exits: *Mat / *Sto) -9/Storage (discovered 2 exits: Mat / Rec) History --------- Turn | Location | Event 15 | -11/Scrapyard | Discovered new exit (range 16) 41 | -11/Scrapyard | Entered Materials 306 | -10/Materials | Build established: Mutant 306 | -10/Materials | Identified exit to Mines 493 | -10/Materials | Entered Mines 696 | -10/Mines | Assembled infested the area 733 | -10/Mines | Core integrity fell below 50% 752 | -10/Mines | Destroyed 7 combat bots 776 | -10/Mines | Lost 4 parts (1p2n1w) 780 | -10/Mines | Found a hidden stash of uninstalled traps 809 | -10/Mines | Core integrity fell below 20% 815 | -10/Mines | Learned Materials terminal intel 1003 | -10/Mines | Discovered new exit (range 5) 1013 | -10/Mines | Entered Materials 1013 | -9/Materials | Evolved 2 slots: Propulsion x1, Utility x1 1014 | -9/Materials | Loaded intel: 12 terminal locations 1272 | -9/Materials | Lost 5 parts (2n3w) 1561 | -9/Materials | Core integrity fell below 50% 1620 | -9/Materials | Lost 4 parts (1p2n1u) 1643 | -9/Materials | Core integrity fell below 20% 1679 | -9/Materials | Discovered new exit (range 14) 1707 | -9/Materials | Discovered new exit (range 6) 1711 | -9/Materials | Entered Storage 1731 | -9/Storage | Identified exit to Recycling 1930 | -9/Storage | Identified exit to Materials 1942 | -9/Storage | Destroyed by S-10 Pest with Light Assault Rifle Last Messages --------------- Trojan loaded successfully. Testing... Terminal linked with 1 system. Awaiting botnet instructions. >>Access(Main) Found 1 level access point to Materials: (6,67) Map updated. Connecting with Door Terminal... >>Open(Door) Sealed Heavy Doors opened. Acquired Prototype Launcher. Identified Gui. EMP Blaster. Guided weapons can set waypoints, but cannot fire with other weapons in the same volley. Dropped Gui. EMP Blaster. System corrupted: Component data lost. Triggered Shock Trap. The floor emits a surge of raw power. System corrupted (+1). Map ----- +----------------------------------------------------+ | ????? # #????????# #??????????????# | | ?????########+#####?????# #??????????????# | | ?????????# #?????# #??????????????# | | ?????????# """ #?????########??????????????# | | ?????????# """ #???????????????????????????# | | ?????????# """ #????????????????????????????# | | ?????????# #????????????????????????????# | | ?????????# """ #???????????????????#####????# | | ?????????# """ #??????????#####????# ????# | | ?????????# """ ##?????????#####????# """"??# | | ?????????# #?????????##]##????# """" ?# | | ?????????###########?????????## ##????# """" # | | ?????????????????????????????#T ##????# ""?" / | | ?????????????????????????????##+##????# ?? # | | ????????????##########???????# #????# ????# | | ???????????? #########???????# #????# ????# | | ???????????? ## #???????# #????# ????# | | ???????????? ## #??###### #??############ | | ???????????? ## #??# ## #### ## | | ???????????? ## #??# # ##"" """ """ ## | | ???????????? ####" "##??# + ##"Y """ """ #^ | | ???????????? ###T #??# # ##"" """ """ / | | ???????????? #### #??# T## #### """ """ # | | ????????????######+########### s#??# """ """ # | | ?????????? r ^^ s#### #### | | ????